bitfinex/quotes_BTCUSD_20241128
["timestamp","ask_amount","ask_price","bid_price","bid_amount"]
[1732803249301,0.127072,96087.0,96082.0,0.0017256]
[1732803249509,0.173,96085.0,96082.0,0.0017256]
[1732803249726,0.15,96085.0,96082.0,0.0017256]
[1732803250594,0.14,96087.0,96082.0,0.1058026]
[1732803250808,0.002,96083.0,96082.0,0.3139576]
[1732803251026,0.002,96083.0,96082.0,0.1058026]
[1732803251243,0.025,96083.0,96082.0,0.1058026]
[1732803251445,0.024,96083.0,96082.0,0.0017256]
[1732803251662,0.001,96085.0,96082.0,0.0017256]
[1732803252084,0.104076,96083.0,96082.0,0.0017256]
[1732803252292,0.22992121,96083.0,96082.0,0.0017256]
[1732803252538,0.22992121,96083.0,96082.0,0.0027256]
[1732803252787,0.37992121,96083.0,96082.0,0.0027256]
[1732803253910,0.37992121,96083.0,96082.0,0.0017256]
[1732803254339,0.37992121,96083.0,96082.0,0.0037256]
[1732803254773,0.39534354,96083.0,96082.0,0.0017256]
[1732803254991,0.39734354,96083.0,96082.0,0.0017256]
[1732803255206,0.38192121,96083.0,96082.0,0.0017256]
[1732803258986,0.39393472,96083.0,96082.0,0.0017256]
[1732803268904,0.39393472,96083.0,96080.0,0.001725]
[1732803268905,0.254078,96081.0,96080.0,0.001725]
[1732803269125,0.38936035,96081.0,96080.0,0.001725]
[1732803269383,0.38936035,96081.0,96054.0,1.0117252]
[1732803269384,0.15,96080.0,96054.0,1.0117252]
[1732803269597,0.254105,96056.0,96054.0,1.0117252]
[1732803269832,0.35695021,96056.0,96054.0,1.0117252]
[1732803270060,0.38939832,96056.0,96054.0,1.0117252]
[1732803270311,0.254107,96055.0,96054.0,0.9894492]
[1732803270563,0.49223178,96055.0,96054.0,0.9894492]
[1732803270791,0.49223178,96055.0,96054.0,0.95770633]
[1732803271015,0.7104768,96055.0,96054.0,0.94564597]
[1732803271288,0.75824389,96055.0,96054.0,0.51602948]
[1732803271502,0.57450562,96055.0,96054.0,0.31038542]
[1732803271726,0.57450562,96055.0,96051.0,0.0017256]
[1732803271727,0.27411,96052.0,96051.0,0.0017256]
[1732803271955,0.65202753,96052.0,96051.0,0.0017256]
[1732803272191,0.254122,96041.0,96040.0,0.0017254]
[1732803272420,0.254128,96035.0,96034.0,0.0017254]
[1732803272667,0.254131,96032.0,96031.0,0.0004]
[1732803272877,0.46155879,96032.0,96031.0,0.0004]
[1732803273089,0.38421007,96032.0,96031.0,0.0004]
[1732803273966,0.3764341,96032.0,96031.0,0.0004]
[1732803274342,0.4014341,96032.0,96031.0,0.0004]
[1732803274568,0.40137842,96032.0,96031.0,0.0004]
[1732803274770,0.38197621,96032.0,96031.0,0.0004]
[1732803275256,0.40328698,96032.0,96031.0,0.0004]
[1732803275455,0.48647315,96032.0,96031.0,0.0004]
[1732803275794,0.50586314,96032.0,96031.0,0.0004]
[1732803275996,0.50686314,96032.0,96031.0,0.0004]
[1732803276861,0.48747315,96032.0,96031.0,0.0004]
[1732803277090,0.51339976,96032.0,96031.0,0.0004]
[1732803277299,0.819143,96021.0,96019.0,0.0145657]
[1732803277512,0.92198821,96021.0,96019.0,0.0145657]
[1732803277727,0.96728473,96021.0,96019.0,0.0145657]
[1732803277939,0.97503306,96021.0,96019.0,0.0145657]
[1732803278151,1.00986211,96021.0,96019.0,0.0145657]
[1732803278399,1.08785357,96021.0,96019.0,0.0145657]
[1732803278632,0.15,96020.0,96019.0,0.0139368]
[1732803278863,0.41177311,96020.0,96019.0,0.0139368]
[1732803279338,0.44701295,96020.0,96019.0,0.0139368]
[1732803279340,0.44701295,96020.0,96004.0,0.0017268]
[1732803279341,0.264148,96017.0,96004.0,0.0017268]
[1732803279555,0.56510008,96017.0,96004.0,0.0017268]
[1732803279780,0.59605609,96017.0,96004.0,0.0017268]
[1732803280647,0.57081625,96017.0,96004.0,0.0017268]
[1732803280877,0.55213964,96017.0,96004.0,0.0017268]
[1732803281102,0.61280442,96017.0,96004.0,0.0017268]
[1732803281316,0.56488797,96017.0,96004.0,0.0017268]
[1732803281747,0.54608739,96017.0,96004.0,0.0017268]
[1732803281991,0.43325593,96017.0,96004.0,0.0017268]
[1732803282439,0.4255076,96017.0,96004.0,0.0017268]
[1732803282704,0.26025593,96017.0,96004.0,0.0017268]
[1732803282921,0.26025593,96017.0,96016.0,0.0839246]
[1732803282922,0.23317327,96017.0,96016.0,0.0839246]
[1732803283435,0.23317327,96017.0,96016.0,0.0017246]
[1732803283655,0.21917327,96017.0,96016.0,0.0017246]
[1732803283876,0.32200473,96017.0,96016.0,0.0017246]
[1732803284100,0.48300473,96017.0,96016.0,0.0027246]
[1732803284339,0.39617327,96017.0,96016.0,0.0017246]
[1732803284559,0.39217327,96017.0,96016.0,0.0017246]
[1732803285932,0.40217327,96017.0,96016.0,0.0027246]
[1732803286139,0.39617327,96017.0,96016.0,0.0017246]
[1732803286375,0.49900473,96017.0,96016.0,0.0017246]
[1732803286606,0.50400473,96017.0,96016.0,0.0027246]
[1732803286829,0.51900473,96017.0,96016.0,0.0027246]
[1732803287060,0.41617327,96017.0,96016.0,0.0027246]
[1732803287275,0.66617327,96017.0,96016.0,0.0027246]
[1732803288407,1.20817327,96017.0,96016.0,0.0027246]
[1732803288654,1.20817327,96017.0,96016.0,0.0015481]
[1732803289840,0.94817327,96017.0,96016.0,0.0015481]
[1732803290058,0.92517327,96017.0,96016.0,0.0015481]
[1732803290838,0.77517327,96017.0,96016.0,0.0015481]
[1732803291270,0.23317327,96017.0,96016.0,0.0015481]
[1732803291484,0.24217327,96017.0,96016.0,0.0005481]
[1732803291924,0.34500473,96017.0,96016.0,0.0005481]
[1732803292168,0.49500473,96017.0,96016.0,0.0005481]
[1732803293272,0.49500473,96017.0,96016.0,0.0015481]
[1732803293273,0.38317327,96017.0,96016.0,0.0015481]
[1732803293538,0.37099321,96017.0,96016.0,0.0804481]
[1732803293752,0.35699321,96017.0,96016.0,0.0794481]
[1732803293977,0.36199321,96017.0,96016.0,0.0794481]
[1732803294419,0.36199321,96017.0,96016.0,0.1279481]
[1732803294634,0.39399321,96017.0,96016.0,0.1289481]
[1732803294894,0.39399321,96017.0,96016.0,0.1279481]
[1732803294895,0.30020575,96017.0,96016.0,0.1279481]
[1732803295133,0.39935375,96017.0,96016.0,0.1279481]
[1732803295996,0.27584521,96017.0,96016.0,0.1279481]
[1732803296423,0.38699321,96017.0,96016.0,0.1289481]
[1732803296635,0.38399321,96017.0,96016.0,0.1279481]
[1732803297131,0.023,96018.0,96016.0,0.1279481]
[1732803297377,0.023,96018.0,96017.0,0.104148]
[1732803298077,0.01257834,96019.0,96016.0,0.1279481]
[1732803298078,0.0008634,96019.0,96018.0,0.104147]
[1732803298319,0.0008634,96019.0,96018.0,0.227147]
[1732803298786,0.02127466,96054.0,96019.0,0.208292]
[1732803299004,0.02127466,96054.0,96016.0,0.0005481]
[1732803299005,0.104123,96040.0,96039.0,0.123]
[1732803299222,0.20696821,96040.0,96039.0,0.123]
[1732803299940,0.22642994,96040.0,96039.0,0.123]
[1732803300172,0.37642994,96040.0,96039.0,0.123]
[1732803300413,0.37642994,96040.0,96039.0,0.124]
[1732803300414,0.39942994,96040.0,96039.0,0.124]
[1732803300640,0.40542994,96040.0,96039.0,0.124]
[1732803300872,0.40542994,96040.0,96039.0,0.123]
[1732803301088,0.39196821,96040.0,96039.0,0.124]
[1732803301349,0.40648263,96040.0,96039.0,0.124]
[1732803301569,0.39496821,96040.0,96039.0,0.124]
[1732803302292,0.47731408,96040.0,96039.0,0.124]
[1732803302544,0.47731408,96040.0,96039.0,0.001]
[1732803303026,1.04877444,96040.0,96039.0,0.001]
[1732803303541,1.08116683,96040.0,96039.0,0.001]
[1732803303765,1.08116683,96040.0,96017.0,0.0819]
[1732803303766,0.023,96018.0,96017.0,0.0819]
[1732803304028,0.023,96018.0,96016.0,0.0005481]
[1732803304029,0.208248,96039.0,96019.0,0.208292]
[1732803304246,0.13730557,96040.0,96039.0,0.104124]
[1732803304247,0.015,96040.0,96039.0,0.104124]
[1732803304472,0.015,96040.0,96039.0,0.232224]
[1732803304696,0.03444414,96040.0,96039.0,0.232224]
[1732803304921,0.03144414,96040.0,96039.0,0.1281]
[1732803305177,0.012,96040.0,96039.0,0.1281]
[1732803305398,0.012,96040.0,96039.0,0.232224]
[1732803305860,0.012,96040.0,96039.0,0.1281]
[1732803305861,0.116123,96040.0,96039.0,0.1281]
[1732803306120,0.104123,96040.0,96039.0,0.1281]
[1732803306373,0.23773639,96040.0,96039.0,0.1281]
[1732803306625,0.20696821,96040.0,96039.0,0.1281]
[1732803306861,0.37996821,96040.0,96039.0,0.1281]
[1732803307071,0.38096821,96040.0,96039.0,0.1281]
[1732803307315,0.37996821,96040.0,96039.0,0.1281]
[1732803307798,0.003,96040.0,96039.0,0.232224]
[1732803308025,0.003,96040.0,96039.0,0.233224]
[1732803308491,0.003,96040.0,96039.0,0.232224]
[1732803308713,0.107123,96040.0,96039.0,0.1281]
[1732803308963,0.005,96040.0,96039.0,0.1281]
[1732803309202,0.002,96040.0,96039.0,0.232224]
[1732803309440,0.003,96040.0,96039.0,0.1281]
[1732803309666,0.003,96040.0,96039.0,0.23606678]
[1732803309888,0.208216,96054.0,96039.0,0.1301]
[1732803310126,0.0008634,96040.0,96039.0,0.234223]
[1732803310362,0.0008634,96040.0,96039.0,0.235223]
[1732803310619,0.0008634,96040.0,96039.0,0.234223]
[1732803310834,0.0008634,96040.0,96039.0,0.1301]
[1732803311052,0.00013972,96040.0,96039.0,0.235224]
[1732803311276,0.00013972,96040.0,96039.0,0.1311]
[1732803311527,0.10426272,96040.0,96039.0,0.1311]
[1732803311752,0.25426272,96040.0,96039.0,0.1291]
[1732803311992,0.38010793,96040.0,96039.0,0.1291]
[1732803312245,0.38010793,96040.0,96039.0,0.003]
[1732803312482,0.38010793,96040.0,96039.0,0.001]
[1732803312702,0.15,96032.0,96030.0,0.0754]
[1732803312928,0.12598493,96040.0,96030.0,0.0754]
[1732803312929,0.15,96038.0,96030.0,0.0754]
[1732803313357,0.104128,96036.0,96030.0,0.179534]
[1732803313572,0.15,96038.0,96032.0,0.104131]
[1732803313799,0.15,96038.0,96030.0,0.0754]
[1732803314062,0.208253,96037.0,96030.0,0.0754]
[1732803314291,0.15,96038.0,96030.0,0.0754]
[1732803314526,0.104127,96036.0,96030.0,0.179533]
[1732803314766,0.104126,96037.0,96030.0,0.179533]
[1732803314988,0.15,96038.0,96030.0,0.0754]
[1732803315435,0.00013972,96040.0,96037.0,0.1324]
[1732803315653,0.00013972,96040.0,96039.0,0.104124]
[1732803316099,0.10426272,96040.0,96037.0,0.1324]
[1732803316317,0.001,96038.0,96037.0,0.236526]
[1732803316792,0.001,96038.0,96037.0,0.1324]
[1732803317032,0.00013972,96040.0,96037.0,0.1344]
[1732803317268,0.104124,96039.0,96037.0,0.1324]
[1732803317498,0.104125,96038.0,96037.0,0.1344]
[1732803317722,0.00013972,96040.0,96037.0,0.1344]
[1732803317977,0.00013972,96040.0,96037.0,0.1324]
[1732803318195,0.104125,96038.0,96037.0,0.1324]
[1732803318912,0.00013972,96040.0,96037.0,0.1324]
[1732803318913,0.10426272,96040.0,96037.0,0.1324]
[1732803319131,0.10426272,96040.0,96037.0,0.1334]
[1732803319355,0.00013972,96040.0,96037.0,0.1354]
[1732803319568,0.104125,96038.0,96037.0,0.1354]
[1732803319801,0.10426272,96040.0,96037.0,0.1344]
[1732803320024,0.00013972,96040.0,96037.0,0.240526]
[1732803320235,0.00013972,96040.0,96038.0,0.104124]
[1732803320471,0.00013972,96040.0,96037.0,0.1364]
[1732803320711,0.104125,96038.0,96037.0,0.1364]
[1732803321209,0.37997021,96038.0,96037.0,0.004]
[1732803321698,0.37997021,96038.0,96037.0,0.002]
[1732803322126,0.37997021,96038.0,96037.0,0.003]
[1732803322350,0.37997021,96038.0,96037.0,0.0027264]
[1732803322566,0.37997021,96038.0,96037.0,0.0017264]
[1732803323017,0.4636293,96038.0,96037.0,0.0017264]
[1732803323440,0.4666293,96038.0,96037.0,0.0017264]
[1732803323680,0.38697021,96038.0,96037.0,0.0017264]
[1732803324632,0.41938075,96038.0,96037.0,0.0017264]
[1732803325586,0.42338075,96038.0,96037.0,0.0017264]
[1732803325835,1.27538075,96038.0,96037.0,0.0017264]
[1732803326303,1.64933196,96038.0,96037.0,0.0017264]
[1732803327232,1.63833196,96038.0,96037.0,0.0017264]
[1732803327743,1.64733196,96038.0,96037.0,0.0017264]
[1732803328463,1.65733196,96038.0,96037.0,4e-07]
[1732803328930,1.66333196,96038.0,96037.0,4e-07]
[1732803329411,0.796148,96017.0,96016.0,0.0005481]
[1732803329650,0.95440375,96017.0,96016.0,0.0005481]
[1732803330326,1.05723521,96017.0,96016.0,0.0005481]
[1732803330540,1.04535237,96017.0,96016.0,0.0005481]
[1732803330795,1.07777672,96017.0,96016.0,0.0005481]
[1732803331023,0.98294526,96017.0,96016.0,0.0005481]
[1732803331479,0.45248442,96017.0,96016.0,0.0005481]
[1732803331687,0.46248442,96017.0,96016.0,0.0005481]
[1732803332090,0.46748442,96017.0,96016.0,0.0005481]
[1732803332344,0.57031588,96017.0,96016.0,0.0005481]
[1732803332623,0.66357306,96017.0,96016.0,0.0005481]
[1732803332845,0.814167,95999.0,95998.0,0.0017246]
[1732803333086,0.814167,95999.0,95973.0,0.0493]
[1732803333087,0.104181,95986.0,95973.0,0.0493]
[1732803333344,0.104181,95986.0,95967.0,0.0814]
[1732803333345,0.43211391,95986.0,95967.0,0.0814]
[1732803333821,0.43211391,95986.0,95961.0,0.0478]
[1732803334322,0.104197,95972.0,95959.0,0.0791]
[1732803334570,0.104197,95972.0,95951.0,0.0004]
[1732803334571,0.39004221,95972.0,95951.0,0.0004]
[1732803334779,0.44262134,95972.0,95951.0,0.0004]
[1732803335222,0.47497651,95972.0,95951.0,0.0004]
[1732803335469,1.11980797,95972.0,95951.0,0.0004]
[1732803335704,1.0874528,95972.0,95951.0,0.0004]
[1732803335944,1.11977073,95972.0,95951.0,0.0004]
[1732803336403,1.11977073,95972.0,95971.0,1e-06]
[1732803336404,1.0974528,95972.0,95971.0,1e-06]
[1732803336622,1.11802219,95972.0,95971.0,1e-06]
[1732803336840,1.12502219,95972.0,95971.0,1e-06]
[1732803337086,1.14830667,95972.0,95971.0,1e-06]
[1732803337302,1.12502219,95972.0,95971.0,1e-06]
[1732803338702,1.09795764,95972.0,95971.0,1e-06]
[1732803338949,1.07244306,95972.0,95971.0,1e-06]
[1732803339412,0.9696116,95972.0,95971.0,1e-06]
[1732803340575,0.9703176,95972.0,95971.0,1e-06]
[1732803341299,0.7773176,95972.0,95971.0,1e-06]
[1732803341767,0.104205,95964.0,95963.0,0.0795]
[1732803341984,0.20705021,95964.0,95963.0,0.0795]
[1732803342227,0.10284521,95964.0,95963.0,0.0795]
[1732803342449,0.104205,95964.0,95963.0,0.0795]
[1732803342889,0.208408,95966.0,95963.0,0.0795]
[1732803343135,0.009,95972.0,95963.0,0.0795]
[1732803343136,0.208398,95970.0,95963.0,0.0795]
[1732803343350,0.005,95964.0,95963.0,0.0795]
[1732803343626,0.208376,95980.0,95976.0,0.0831]
[1732803343861,0.104191,95977.0,95976.0,0.0831]
[1732803344075,0.20703621,95977.0,95976.0,0.0831]
[1732803344948,0.35703621,95977.0,95976.0,0.1312]
[1732803346486,0.35703621,95977.0,95976.0,0.1329272]
[1732803347620,0.36203621,95977.0,95976.0,0.1329272]
[1732803349035,0.35903621,95977.0,95976.0,0.1329272]
[1732803349264,0.35703621,95977.0,95976.0,0.1329272]
[1732803349706,0.35903621,95977.0,95976.0,0.1329272]
[1732803350379,0.35703621,95977.0,95976.0,0.1329272]
[1732803350605,0.35703621,95977.0,95976.0,0.1339272]
[1732803351069,0.254191,95977.0,95976.0,0.1339272]
[1732803354354,0.35703621,95977.0,95976.0,0.1339272]
[1732803355350,0.35703621,95977.0,95976.0,0.0858272]
[1732803355807,0.35703621,95977.0,95976.0,0.0848272]
[1732803356037,0.35803621,95977.0,95976.0,0.0848272]
[1732803356458,0.3696768,95977.0,95976.0,0.0848272]
[1732803356931,0.3726768,95977.0,95976.0,0.0848272]
[1732803358152,0.3735396,95977.0,95976.0,0.0848272]
[1732803358866,0.3705396,95977.0,95976.0,0.0848272]
[1732803359346,0.3735396,95977.0,95976.0,0.0848272]
[1732803359583,0.3705396,95977.0,95976.0,0.0848272]
[1732803359822,0.3695396,95977.0,95976.0,0.0848272]
[1732803360266,0.49200496,95977.0,95976.0,0.0848272]
[1732803360485,0.3935396,95977.0,95976.0,0.0017272]
[1732803360992,0.3945396,95977.0,95976.0,0.0017272]
[1732803361507,0.3935396,95977.0,95976.0,0.0017272]
[1732803361934,0.3925396,95977.0,95976.0,0.0017272]
[1732803362386,0.3955396,95977.0,95976.0,0.0017272]
[1732803362599,0.49760496,95977.0,95976.0,0.0017272]
[1732803362840,0.49860496,95977.0,95976.0,0.0017272]
[1732803364059,0.53101565,95977.0,95976.0,0.0017272]
[1732803364301,1.07301565,95977.0,95976.0,0.0017272]
[1732803365003,0.97095029,95977.0,95976.0,0.0017272]
[1732803365452,0.9385396,95977.0,95976.0,0.0017272]
[1732803365675,0.9385396,95977.0,95976.0,0.0775272]
[1732803365676,0.9355396,95977.0,95976.0,0.0775272]
[1732803366142,0.9435396,95977.0,95976.0,0.0775272]
[1732803366386,0.9395396,95977.0,95976.0,0.0785272]
[1732803366639,0.9395396,95977.0,95976.0,0.0027272]
[1732803366640,0.9425396,95977.0,95976.0,0.0027272]
[1732803366859,1.07281004,95977.0,95976.0,0.0017272]
[1732803367098,1.06981004,95977.0,95976.0,0.0017272]
[1732803367323,0.96797858,95977.0,95976.0,0.0017272]
[1732803367550,0.79497858,95977.0,95976.0,0.0017272]
[1732803367773,0.79397858,95977.0,95976.0,0.0775272]
[1732803368055,0.7615396,95977.0,95976.0,0.0775272]
[1732803368292,0.7895396,95977.0,95976.0,0.0017272]
[1732803368538,0.92981615,95977.0,95976.0,0.0017272]
[1732803368790,0.92481615,95977.0,95976.0,0.0017272]
[1732803369029,1.08481615,95977.0,95976.0,0.0017272]
[1732803369328,1.08781615,95977.0,95976.0,0.0017272]
[1732803369556,1.08781615,95977.0,95976.0,2e-07]
[1732803369557,1.07981615,95977.0,95976.0,2e-07]
[1732803369811,1.08781615,95977.0,95976.0,2e-07]
[1732803370046,1.08981615,95977.0,95976.0,2e-07]
[1732803370496,1.08981615,95977.0,95964.0,0.0017256]
[1732803370497,0.554204,95965.0,95964.0,0.0017256]
[1732803370710,0.81532576,95965.0,95964.0,0.0017256]
[1732803371939,0.82532576,95965.0,95964.0,0.0017256]
[1732803372392,0.7224943,95965.0,95964.0,0.0017256]
[1732803373060,0.75105302,95965.0,95964.0,0.0017256]
[1732803373272,0.76272956,95965.0,95964.0,0.0017256]
[1732803374435,0.76672956,95965.0,95964.0,0.0017256]
[1732803374895,0.45672956,95965.0,95964.0,0.0017256]
[1732803375614,0.55956102,95965.0,95964.0,0.0017256]
[1732803376076,0.45672956,95965.0,95964.0,0.0017256]
[1732803377057,0.71672956,95965.0,95964.0,0.0017256]
[1732803378580,1.25872956,95965.0,95964.0,6e-07]
[1732803382593,0.99872956,95965.0,95964.0,6e-07]
[1732803382831,0.97572956,95965.0,95964.0,6e-07]
[1732803383534,1.07856102,95965.0,95964.0,6e-07]
[1732803384501,0.55956102,95965.0,95964.0,6e-07]
[1732803386667,0.45672956,95965.0,95964.0,6e-07]
[1732803387343,0.473,95958.0,95957.0,0.0016866]
[1732803387573,0.7125023,95958.0,95957.0,0.0016866]
[1732803388484,0.7195023,95958.0,95957.0,0.0026866]
[1732803388683,0.7285023,95958.0,95957.0,0.0026866]
[1732803388892,0.74421772,95958.0,95957.0,0.0026866]
[1732803389329,0.75321772,95958.0,95957.0,0.0026866]
[1732803390384,1.29521772,95958.0,95957.0,0.0026866]
[1732803390598,1.29821772,95958.0,95957.0,0.0016866]
[1732803390798,1.49098276,95958.0,95957.0,6e-07]
[1732803391021,1.30421772,95958.0,95957.0,6e-07]
[1732803391230,1.44425904,95958.0,95957.0,6e-07]
[1732803391435,1.44425891,95958.0,95957.0,6e-07]
[1732803391638,1.43425891,95958.0,95957.0,6e-07]
[1732803391869,1.40354349,95958.0,95957.0,6e-07]
[1732803392134,1.40354349,95958.0,95957.0,0.0814006]
[1732803392135,1.2625023,95958.0,95957.0,0.0814006]
[1732803392542,1.2715023,95958.0,95957.0,6e-07]
[1732803393220,1.2625023,95958.0,95957.0,6e-07]
[1732803393432,1.36533376,95958.0,95957.0,6e-07]
[1732803393644,1.36633376,95958.0,95957.0,6e-07]
[1732803394054,1.37233376,95958.0,95957.0,6e-07]
[1732803394525,1.36633376,95958.0,95957.0,6e-07]
[1732803394752,1.37433376,95958.0,95957.0,6e-07]
[1732803394981,0.2565023,95958.0,95957.0,0.0790006]
[1732803395202,0.2565023,95958.0,95957.0,0.1251006]
[1732803395203,0.11084521,95958.0,95957.0,0.1251006]
[1732803395437,0.008,95958.0,95957.0,0.1251006]
[1732803395663,0.009,95958.0,95957.0,6e-07]
[1732803395897,0.104212,95958.0,95957.0,6e-07]
[1732803396114,0.104212,95958.0,95957.0,0.1304006]
[1732803396332,0.113212,95958.0,95957.0,0.1304006]
[1732803396547,0.104212,95958.0,95957.0,0.1304006]
[1732803396804,0.20705721,95958.0,95957.0,0.1304006]
[1732803397029,0.23605721,95958.0,95957.0,0.1304006]
[1732803397478,0.23005721,95958.0,95957.0,0.1304006]
[1732803398163,0.38005721,95958.0,95957.0,0.1304006]
[1732803398639,0.38005721,95958.0,95957.0,0.2346136]
[1732803398640,0.15,95958.0,95957.0,0.2346136]
[1732803398860,0.0008627,95976.0,95963.0,0.0481]
[1732803398861,0.0116062,95973.0,95963.0,0.0481]
[1732803399080,0.104198,95971.0,95965.0,0.0481]
[1732803399341,0.104198,95971.0,95962.0,0.104207]
[1732803399342,0.104201,95969.0,95966.0,0.1304]
[1732803399583,0.1042,95969.0,95968.0,0.0823]
[1732803399801,0.10284521,95970.0,95968.0,0.0823]
[1732803400015,0.0008627,95976.0,95970.0,0.0823]
[1732803400263,0.005,95973.0,95972.0,0.0823]
[1732803400498,0.109195,95973.0,95972.0,0.1304]
[1732803400739,0.005,95973.0,95972.0,0.1304]
[1732803401014,0.109195,95973.0,95972.0,0.1304]
[1732803401474,0.104195,95973.0,95972.0,0.0481]
[1732803401926,0.15,95974.0,95972.0,0.0481]
[1732803402172,0.15,95974.0,95973.0,0.0823]
[1732803402398,0.254194,95974.0,95973.0,0.0823]
[1732803403096,0.15,95975.0,95973.0,0.0823]
[1732803403319,0.254194,95974.0,95973.0,0.0823]
[1732803403538,0.104194,95974.0,95973.0,0.0823]
[1732803403749,0.15,95974.0,95973.0,0.0823]
[1732803404192,0.254194,95974.0,95973.0,0.0823]
[1732803404434,0.15,95974.0,95973.0,0.0823]
[1732803404672,0.0008627,95976.0,95973.0,0.0823]
[1732803404890,0.1508627,95976.0,95973.0,0.0823]
[1732803405147,0.1508627,95976.0,95975.0,0.104193]
[1732803405352,0.1508627,95976.0,95975.0,0.0815]
[1732803405569,0.2550547,95976.0,95975.0,0.0815]
[1732803406267,0.0008627,95976.0,95975.0,0.0815]
[1732803406484,0.0008627,95976.0,95975.0,0.233493]
[1732803406712,0.0099212,95992.0,95972.0,0.01]
[1732803406931,0.01631165,96013.0,95992.0,0.0808]
[1732803407153,0.0008636,96017.0,95992.0,0.0808]
[1732803407154,0.104167,96000.0,95998.0,0.0808]
[1732803407451,0.20701221,95999.0,95998.0,0.0808]
[1732803407899,0.003,95992.0,95990.0,0.0808]
[1732803408144,0.20702121,95991.0,95990.0,0.0808]
[1732803408611,0.35702121,95991.0,95990.0,0.0808]
[1732803408851,0.38002121,95991.0,95990.0,0.0808]
[1732803409569,0.38402121,95991.0,95990.0,0.0808]
[1732803410509,0.38602121,95991.0,95990.0,0.0808]
[1732803414343,0.38102121,95991.0,95990.0,0.0808]
[1732803415942,0.15,95987.0,95981.0,0.082]
[1732803416170,0.208361,95988.0,95972.0,0.082]
[1732803416171,0.173,95975.0,95972.0,0.082]
[1732803416393,0.254205,95964.0,95963.0,0.082]
[1732803416637,0.35705021,95964.0,95963.0,0.082]
[1732803417329,0.104205,95964.0,95963.0,0.082]
[1732803418036,0.104199,95970.0,95965.0,0.081]
[1732803418256,0.104197,95973.0,95971.0,0.081]
[1732803418487,0.104197,95972.0,95971.0,0.081]
[1732803420781,0.104197,95972.0,95971.0,0.082]
[1732803420992,0.208385,95976.0,95971.0,0.082]
[1732803421221,0.104197,95972.0,95971.0,0.082]
[1732803421441,0.104197,95972.0,95971.0,0.081]
[1732803422130,0.104197,95972.0,95971.0,0.082]
[1732803422795,0.542,96009.0,95971.0,0.00284415]
[1732803423014,0.09321437,96020.0,95992.0,0.1214]
[1732803423248,0.10284521,96016.0,96013.0,0.1251]
[1732803423469,0.208288,96021.0,96013.0,0.1251]
[1732803423470,0.104151,96014.0,96013.0,0.1251]
[1732803423969,0.20699621,96014.0,96013.0,0.1251]
[1732803424674,0.35699621,96014.0,96013.0,0.1251]
[1732803424891,0.35699621,96014.0,96013.0,0.08]
[1732803425387,0.35799621,96014.0,96013.0,0.08]
[1732803426505,0.36699621,96014.0,96013.0,0.08]
[1732803426729,0.35799621,96014.0,96013.0,0.08]
[1732803427164,0.255151,96014.0,96013.0,0.08]
[1732803427412,0.001,96014.0,96013.0,0.1279]
[1732803428288,0.005,96014.0,96013.0,0.1279]
[1732803428723,0.005,96014.0,96013.0,0.232052]
[1732803429146,0.005,96014.0,96013.0,0.1279]
[1732803429379,0.109151,96014.0,96013.0,0.1279]
[1732803429781,0.005,96014.0,96013.0,0.1279]
[1732803430272,0.001,96014.0,96013.0,0.1279]
[1732803430486,0.105151,96014.0,96013.0,0.1279]
[1732803430712,0.001,96014.0,96013.0,0.1279]
[1732803430933,0.0008636,96017.0,96013.0,0.1279]
[1732803431391,0.104149,96016.0,96013.0,0.1279]
[1732803431628,0.10415,96015.0,96013.0,0.1279]
[1732803431853,0.001,96014.0,96013.0,0.1279]
[1732803432086,0.0018625,96014.0,96013.0,0.1279]
[1732803432318,0.0008625,96014.0,96013.0,0.1279]
[1732803432552,0.0008625,96014.0,96013.0,0.1299]
[1732803432778,0.0048625,96014.0,96013.0,0.1299]
[1732803433053,0.0008625,96014.0,96013.0,0.1299]
[1732803433565,0.0018625,96014.0,96013.0,0.1309]
[1732803434026,0.0018625,96014.0,96013.0,0.235052]
[1732803434930,0.0018625,96014.0,96013.0,0.233052]
[1732803435187,0.0018625,96014.0,96013.0,0.236052]
[1732803437249,0.0018625,96014.0,96013.0,0.1319]
[1732803437704,0.0018625,96014.0,96013.0,0.236052]
[1732803437918,0.1060135,96014.0,96013.0,0.1319]
[1732803438171,0.23327421,96014.0,96013.0,0.1319]
[1732803438414,0.38185871,96014.0,96013.0,0.004]
[1732803438629,0.39369616,96014.0,96013.0,0.004]
[1732803439318,0.42606843,96014.0,96013.0,0.001]
[1732803439541,0.43006843,96014.0,96013.0,0.001]
[1732803439763,0.43006843,96014.0,96002.0,0.0508]
[1732803439764,0.104163,96003.0,96002.0,0.0508]
[1732803440023,0.38000821,96003.0,96002.0,0.0508]
[1732803441584,0.38200821,96003.0,96002.0,0.0508]
[1732803442475,0.36000821,96003.0,96002.0,0.0508]
[1732803442718,0.003,96003.0,96002.0,0.0969]
[1732803442957,0.003,96003.0,96002.0,0.1789]
[1732803442958,0.001,96003.0,96002.0,0.1789]
[1732803443197,0.105163,96003.0,96002.0,0.1789]
[1732803443408,0.109163,96003.0,96002.0,0.1789]
[1732803443627,0.105163,96003.0,96002.0,0.1789]
[1732803443882,0.1060255,96003.0,96002.0,0.1789]
[1732803444577,0.1070255,96003.0,96002.0,0.1799]
[1732803445012,0.1050255,96003.0,96002.0,0.1789]
[1732803445478,0.1050255,96003.0,96002.0,0.1809]
[1732803447093,0.1050255,96003.0,96002.0,0.1819]
[1732803447316,0.0008625,96003.0,96002.0,0.1819]
[1732803447534,0.0008625,96003.0,96002.0,0.286064]
[1732803449428,0.0008625,96003.0,96002.0,0.1819]
[1732803449429,0.1050255,96003.0,96002.0,0.1819]
[1732803452226,0.0008625,96003.0,96002.0,0.1819]
[1732803452469,0.1050255,96003.0,96002.0,0.1819]
[1732803453775,0.0008625,96003.0,96002.0,0.1819]
[1732803454223,0.1050255,96003.0,96002.0,0.1819]
[1732803454485,0.1050255,96003.0,96002.0,0.0538]
[1732803454486,0.20787071,96003.0,96002.0,0.0538]
[1732803454707,0.38087071,96003.0,96002.0,0.0538]
[1732803455183,0.95751582,96003.0,96002.0,1e-06]
[1732803455411,0.96751582,96003.0,96002.0,1e-06]